fUSD/lending_fUSD_20250530
["ID","MTS","AMOUNT","RATE_DAILY","PERIOD"]
[363132043,1748595050899,-936.66,0.00022191,2]
[363132044,1748595050909,-420.0,0.00022191,2]
[363132045,1748595050918,-566.12,0.00022191,2]
[363132046,1748595050927,-420.0,0.00022191,2]
[363132047,1748595050937,-420.0,0.00022191,2]
[363132048,1748595050946,-832.73,0.00022191,2]
[363132049,1748595050956,-420.0,0.00022191,2]
[363132050,1748595050965,-647.61,0.00022191,2]
[363132051,1748595050974,-681.6,0.00022191,2]
[363132052,1748595050984,-420.0,0.00022191,2]
[363132053,1748595050993,-601.12,0.00022191,2]
[363132054,1748595051002,-420.0,0.00022191,2]
[363132055,1748595051011,-367.54817576,0.00022191,2]
[363132056,1748595051021,-977.69,0.00022191,2]
[363132057,1748595051030,-719.65,0.00022191,2]
[363132058,1748595051039,-151.0,0.00022191,7]
[363132059,1748595051048,-420.0,0.00022191,2]
[363132060,1748595051058,-420.0,0.00022191,2]
[363132061,1748595051067,-1108.82,0.00022191,2]
[363132062,1748595051077,-732.79,0.00022191,2]
[363132063,1748595051087,-473.65,0.00022191,2]
[363132064,1748595051096,-873.52,0.00022191,2]
[363132065,1748595051105,-493.62414178,0.00022191,2]
[363132066,1748595051114,-420.0,0.00022191,2]
[363132067,1748595051124,-420.0,0.00022191,2]
[363132068,1748595051133,-420.0,0.00022191,2]
[363132069,1748595051142,-420.0,0.00022191,2]
[363132070,1748595051151,-420.0,0.00022191,2]
[363132071,1748595051160,-1343.03,0.00022191,2]
[363132072,1748595051169,-420.0,0.00022191,2]
[363132073,1748595051178,-420.0,0.00022191,2]
[363132074,1748595051187,-420.0,0.00022191,2]
[363132075,1748595051196,-759.29,0.00022191,2]
[363132076,1748595051205,-234.723718,0.00022191,7]
[363132077,1748595051214,-234.723718,0.00022191,7]
[363132078,1748595051223,-420.0,0.00022191,2]
[363132079,1748595051232,-420.0,0.00022191,2]
[363132080,1748595051241,-420.0,0.00022191,2]
[363132081,1748595051251,-234.723718,0.00022191,7]
[363132082,1748595051260,-420.0,0.00022191,2]
[363132083,1748595051270,-234.723718,0.00022191,7]
[363132084,1748595051280,-420.0,0.00022191,2]
[363132085,1748595051289,-550.98,0.00022191,2]
[363132086,1748595051298,-170.3644901,0.00022191,2]
[363132087,1748595051307,-1374.21,0.00022191,2]
[363132088,1748595051316,-917.27,0.00022191,2]
[363132089,1748595051326,-1575.93,0.00022191,2]
[363132090,1748595051335,-556.09,0.00022191,2]
[363132091,1748595051344,-420.0,0.00022191,2]
[363132092,1748595051354,-420.0,0.00022191,2]
[363132093,1748595051363,-464.8,0.00022191,2]
[363132094,1748595051372,-568.6,0.00022191,2]
[363132095,1748595051382,-980.33,0.00022191,2]
[363132096,1748595051391,-438.38,0.00022191,2]
[363132097,1748595051400,-420.0,0.00022191,2]
[363132098,1748595051410,-968.17,0.00022191,2]
[363132099,1748595051419,-420.0,0.00022191,2]
[363132100,1748595051428,-151.0,0.00022191,7]
[363132101,1748595051437,-151.0,0.00022191,7]
[363132102,1748595051446,-168.192605,0.00022191,7]
[363132103,1748595051455,-420.0,0.00022191,2]
[363132104,1748595051465,-1602.91,0.00022191,2]
[363132105,1748595051474,-420.0,0.00022191,2]
[363132106,1748595051483,-504.93249883,0.00022191,2]
[363132107,1748595051494,-532.86,0.00022191,2]
[363132108,1748595051505,-1468.8,0.00022191,2]
[363132109,1748595051514,-2410.04,0.00022191,2]
[363132110,1748595051524,-629.25,0.00022191,2]
[363132111,1748595051533,-420.0,0.00022191,2]
[363132112,1748595051543,-420.0,0.00022191,2]
[363132113,1748595051552,-420.0,0.00022191,2]
[363132114,1748595051561,-420.0,0.00022191,2]
[363132115,1748595051571,-1250.74,0.00022191,2]
[363132116,1748595051581,-420.0,0.00022191,2]
[363132117,1748595051591,-261.87117425,0.00022191,2]
[363132118,1748595051601,-420.0,0.00022191,2]
[363132119,1748595051610,-599.18,0.00022191,2]
[363132120,1748595051620,-420.0,0.00022191,2]
[363132121,1748595051629,-609.29,0.00022191,2]
[363132122,1748595051638,-316.93293961,0.00022191,2]
[363132123,1748595051647,-420.0,0.00022191,2]
[363132124,1748595051656,-1345.29,0.00022191,2]
[363132125,1748595051665,-420.0,0.00022191,2]
[363132126,1748595051675,-420.0,0.00022191,2]
[363132127,1748595051684,-420.0,0.00022191,2]
[363132128,1748595051693,-631.58,0.00022191,2]
[363132129,1748595051702,-1383.69,0.00022191,2]
[363132130,1748595051711,-1110.64,0.00022191,2]
[363132131,1748595051720,-1126.99,0.00022191,2]
[363132132,1748595051728,-420.0,0.00022191,2]
[363132133,1748595051736,-1763.39,0.00022191,2]
[363132134,1748595051744,-420.0,0.00022191,2]
[363132135,1748595051753,-151.0,0.00022191,7]
[363132136,1748595051762,-1561.08,0.00022191,2]
[363132137,1748595051771,-420.0,0.00022191,2]
[363132138,1748595051781,-547.94,0.00022191,2]
[363132139,1748595051790,-420.0,0.00022191,2]
[363132140,1748595051799,-1089.82,0.00022191,2]
[363132141,1748595051809,-685.02,0.00022191,2]
[363132142,1748595051818,-420.0,0.00022191,2]
[363132143,1748595051827,-420.0,0.00022191,2]
[363132144,1748595051836,-160.0,0.00022191,2]
[363132145,1748595051845,-160.0,0.00022191,2]
[363132146,1748595051856,-420.0,0.00022191,2]
[363132147,1748595051866,-423.7,0.00022191,2]
[363132148,1748595051875,-1214.08,0.00022191,2]
[363132149,1748595051885,-420.0,0.00022191,2]
[363132150,1748595051894,-420.0,0.00022191,2]
[363132151,1748595051904,-420.0,0.00022191,2]
[363132152,1748595051914,-971.42,0.00022191,2]
[363132153,1748595051923,-1052.34,0.00022191,2]
[363132154,1748595051932,-420.0,0.00022191,2]
[363132155,1748595051942,-420.0,0.00022191,2]
[363132156,1748595051951,-587.16,0.00022191,2]
[363132157,1748595051961,-503.7571613,0.00022191,2]
[363132158,1748595051970,-1174.65,0.00022191,2]
[363132159,1748595051979,-795.89,0.00022191,2]
[363132160,1748595051989,-420.0,0.00022191,2]
[363132161,1748595051998,-151.0,0.00022191,7]
[363132162,1748595052008,-457.41666003,0.00022191,2]
[363132163,1748595052017,-420.0,0.00022191,2]
[363132164,1748595052027,-455.81,0.00022191,2]
[363132165,1748595052036,-420.0,0.00022191,2]
[363132166,1748595052046,-420.0,0.00022191,2]
[363132167,1748595052056,-153.337601,0.00022191,7]
[363132168,1748595052066,-420.0,0.00022191,2]
[363132169,1748595052076,-1281.51,0.00022191,2]
[363132170,1748595052085,-456.85,0.00022191,2]
[363132171,1748595052094,-644.85,0.00022191,2]
[363132172,1748595052103,-420.0,0.00022191,2]
[363132173,1748595052113,-152.56483881,0.00022191,2]
[363132174,1748595052122,-482.2,0.00022191,2]
[363132175,1748595052131,-805.75,0.00022191,2]
[363132176,1748595052141,-702.42,0.00022191,2]
[363132177,1748595052150,-500.0,0.00022191,2]
[363132178,1748595052160,-541.7,0.00022191,2]
[363132179,1748595052169,-420.0,0.00022191,2]
[363132180,1748595052178,-429.86,0.00022191,2]
[363132181,1748595052188,-420.0,0.00022191,2]
[363132182,1748595052198,-420.0,0.00022191,2]
[363132183,1748595052209,-420.0,0.00022191,2]
[363132184,1748595052219,-223.85,0.00022191,2]
[363132185,1748595052230,-478.59,0.00022191,2]
[363132186,1748595052241,-420.0,0.00022191,2]
[363132187,1748595052252,-1051.67,0.00022191,2]
[363132188,1748595052262,-420.0,0.00022191,2]
[363132189,1748595052273,-420.0,0.00022191,2]
[363132190,1748595052283,-1121.2,0.00022191,2]
[363132191,1748595052293,-420.0,0.00022191,2]
[363132192,1748595052303,-505.88206369,0.00022191,2]
[363132193,1748595052313,-420.0,0.00022191,2]
[363132194,1748595052322,-420.0,0.00022191,2]
[363132195,1748595052331,-585.13,0.00022191,2]
[363132196,1748595052341,-1097.86,0.00022191,2]
[363132197,1748595052351,-420.0,0.00022191,2]
[363132198,1748595052361,-475.78,0.00022191,2]
[363132199,1748595052372,-2317.034182,0.00022191,7]
[363132200,1748595052382,-420.0,0.00022191,2]
[363132201,1748595052391,-2317.034182,0.00022191,7]
[363132202,1748595052401,-420.0,0.00022191,2]
[363132203,1748595052410,-2317.034182,0.00022191,7]
[363132204,1748595052418,-420.0,0.00022191,2]
[363132205,1748595052428,-580.44,0.00022191,2]
[363132206,1748595052436,-420.0,0.00022191,2]
[363132207,1748595052446,-161.86898578,0.00022191,2]
[363132208,1748595052456,-2317.034182,0.00022191,7]
[363132209,1748595052464,-756.97,0.00022191,2]
[363132210,1748595052473,-864.57,0.00022191,2]
[363132211,1748595052482,-164.68215292,0.00022191,2]
[363132212,1748595052492,-420.0,0.00022191,2]
[363132213,1748595052504,-1135.05,0.00022191,2]
[363132214,1748595052512,-420.0,0.00022191,2]
[363132215,1748595052521,-160.0,0.00022191,2]
[363132216,1748595052530,-683.44,0.00022191,2]
[363132217,1748595052540,-686.42,0.00022191,2]
[363132218,1748595052550,-420.0,0.00022191,2]
[363132219,1748595052559,-698.2,0.00022191,2]
[363132220,1748595052568,-1059.69,0.00022191,2]
[363132221,1748595052578,-9664.27,0.00022191,2]
[363132222,1748595052588,-807.29,0.00022191,2]
[363132223,1748595052598,-420.0,0.00022191,2]
[363132224,1748595052610,-151.0,0.00022191,7]
[363132225,1748595052619,-151.0,0.00022191,7]
[363132226,1748595052628,-579.11,0.00022191,2]
[363132227,1748595052636,-856.34,0.00022191,2]
[363132228,1748595052646,-420.0,0.00022191,2]
[363132229,1748595052654,-2183.84,0.00022191,2]
[363132230,1748595052662,-505.79703557,0.00022191,2]
[363132231,1748595052671,-518.88265141,0.00022191,2]
[363132232,1748595052681,-420.0,0.00022191,2]
[363132233,1748595052691,-420.0,0.00022191,2]
[363132234,1748595052701,-420.0,0.00022191,2]
[363132235,1748595052711,-151.0,0.00022191,7]
[363132236,1748595052721,-1246.82,0.00022191,2]
[363132237,1748595052731,-5299.22,0.00022191,2]
[363132238,1748595052740,-151.0,0.00022191,7]
[363132239,1748595052750,-633.06,0.00022191,2]
[363132240,1748595052760,-1561.83,0.00022191,2]
[363132241,1748595052771,-160.0,0.00022191,2]
[363132242,1748595052781,-420.0,0.00022191,2]
[363132243,1748595052791,-423.54,0.00022191,2]
[363132244,1748595052801,-151.0,0.00022191,7]
[363132245,1748595052811,-151.0,0.00022191,7]
[363132246,1748595052821,-1237.4,0.00022191,2]
[363132247,1748595052831,-525.4460781,0.00022191,2]
[363132248,1748595052841,-703.36,0.00022191,2]
[363132249,1748595052852,-550.35,0.00022191,2]
[363132250,1748595052861,-454.68,0.00022191,2]
[363132251,1748595052870,-1110.79,0.00022191,2]
[363132252,1748595052880,-1231.42,0.00022191,2]
[363132253,1748595052890,-622.09,0.00022191,2]
[363132254,1748595052900,-1183.57,0.00022191,2]
[363132255,1748595052910,-420.0,0.00022191,2]
[363132256,1748595052920,-420.0,0.00022191,2]
[363132257,1748595052929,-420.0,0.00022191,2]
[363132258,1748595052939,-715.8,0.00022191,2]
[363132259,1748595052949,-420.0,0.00022191,2]
[363132260,1748595052959,-571.86,0.00022191,2]
[363132261,1748595052968,-1742.19,0.00022191,2]
[363132262,1748595052978,-539.5,0.00022191,2]
[363132263,1748595052988,-420.0,0.00022191,2]
[363132264,1748595052998,-420.0,0.00022191,2]
[363132265,1748595053008,-420.0,0.00022191,2]
[363132266,1748595053018,-420.0,0.00022191,2]
[363132267,1748595053028,-165.33875953,0.00022191,2]
[363132268,1748595053038,-1019.74,0.00022191,2]
[363132269,1748595053047,-10310.4,0.00022191,2]
[363132270,1748595053057,-420.0,0.00022191,2]
[363132271,1748595053068,-420.0,0.00022191,2]
[363132272,1748595053078,-817.71,0.00022191,2]
[363132273,1748595053088,-1883.22,0.00022191,2]
[363132274,1748595053098,-420.0,0.00022191,2]
[363132275,1748595053112,-619.48,0.00022191,2]
[363132276,1748595053122,-420.0,0.00022191,2]
[363132277,1748595053131,-1094.06,0.00022191,2]
[363132278,1748595053140,-1423.0,0.00022191,2]
[363132279,1748595053150,-712.17,0.00022191,2]
[363132280,1748595053160,-420.0,0.00022191,2]
[363132281,1748595053170,-1236.41,0.00022191,2]
[363132282,1748595053180,-573.55,0.00022191,2]
[363132283,1748595053190,-549.66,0.00022191,2]
[363132284,1748595053201,-1568.86,0.00022191,2]
[363132285,1748595053211,-651.44,0.00022191,2]
[363132286,1748595053220,-946.02,0.00022191,2]
[363132287,1748595053230,-146173.86,0.00022191,2]
[363132288,1748595053240,-3632.37,0.00022191,2]
[363132289,1748595053249,-420.0,0.00022191,2]
[363132290,1748595053259,-151.0,0.00022191,7]
[363132291,1748595053269,-939.43,0.00022191,2]
[363132292,1748595053279,-154.020996,0.00022191,7]
[363132293,1748595053288,-2425.51,0.00022191,2]
[363132294,1748595053298,-420.0,0.00022191,2]
[363132295,1748595053308,-11917.48,0.00022191,2]
[363132296,1748595053318,-420.0,0.00022191,2]
[363132297,1748595053328,-884.49,0.00022191,2]
[363132298,1748595053338,-290.3,0.00022191,2]
[363132299,1748595053347,-978.34,0.00022191,2]
[363132300,1748595053361,-420.0,0.00022191,2]
[363132301,1748595053370,-867.02,0.00022191,2]
[363132302,1748595053381,-1653.59,0.00022191,2]
[363132303,1748595053391,-420.0,0.00022191,2]
[363132304,1748595053401,-420.0,0.00022191,2]
[363132305,1748595053411,-420.0,0.00022191,2]
[363132306,1748595053420,-753.89,0.00022191,2]
[363132307,1748595053430,-421.67,0.00022191,2]
[363132308,1748595053440,-420.0,0.00022191,2]
[363132309,1748595053450,-591.07,0.00022191,2]
[363132310,1748595053460,-493.51,0.00022191,2]
[363132311,1748595053470,-2970.33,0.00022191,2]
[363132312,1748595053480,-420.0,0.00022191,2]
[363132313,1748595053489,-2074.1,0.00022191,2]
[363132314,1748595053502,-420.0,0.00022191,2]
[363132315,1748595053511,-420.0,0.00022191,2]
[363132316,1748595053522,-552.95,0.00022191,2]
[363132317,1748595053532,-1216.76,0.00022191,2]
[363132318,1748595053542,-420.0,0.00022191,2]
[363132319,1748595053553,-420.0,0.00022191,2]
[363132320,1748595053563,-420.0,0.00022191,2]
[363132321,1748595053575,-506.25502807,0.00022191,2]
[363132322,1748595053585,-420.0,0.00022191,2]
[363132323,1748595053594,-1418.23,0.00022191,2]
[363132324,1748595053606,-2872.57,0.00022191,2]
[363132325,1748595053615,-151.0,0.00022191,7]
[363132326,1748595053625,-420.0,0.00022191,2]
[363132327,1748595053635,-581.16,0.00022191,2]
[363132328,1748595053645,-151.0,0.00022191,7]
[363132329,1748595053655,-605.35,0.00022191,2]
[363132330,1748595053665,-3431.27,0.00022191,2]
[363132331,1748595053675,-1195.25,0.00022191,2]
[363132332,1748595053685,-420.0,0.00022191,2]
[363132333,1748595053695,-875.67,0.00022191,2]
[363132334,1748595053705,-420.0,0.00022191,2]
[363132335,1748595053715,-500.0,0.00022191,2]
[363132336,1748595053725,-420.0,0.00022191,2]
[363132337,1748595053735,-420.0,0.00022191,2]
[363132338,1748595053745,-1028.59,0.00022191,2]
[363132339,1748595053755,-420.0,0.00022191,2]
[363132340,1748595053765,-1013.39,0.00022191,2]
[363132341,1748595053775,-35448.93,0.00022191,2]
[363132342,1748595053785,-832.47,0.00022191,2]
[363132343,1748595053795,-438.34,0.00022191,2]
[363132344,1748595053805,-695.63,0.00022191,2]
[363132345,1748595053815,-420.0,0.00022191,2]
[363132346,1748595053825,-864.09,0.00022191,2]
[363132347,1748595053835,-1460.45,0.00022191,2]
[363132348,1748595053845,-4777.0,0.00022191,2]
[363132349,1748595053854,-1016.81,0.00022191,2]
[363132350,1748595053864,-420.0,0.00022191,2]
[363132351,1748595053874,-6943.61,0.00022191,2]
[363132352,1748595053885,-5912.69,0.00022191,2]
[363132353,1748595053894,-3410.15,0.00022191,2]
[363132354,1748595053904,-420.0,0.00022191,2]
[363132355,1748595053915,-604.59,0.00022191,2]
[363132356,1748595053925,-420.0,0.00022191,2]
[363132357,1748595053936,-712.14,0.00022191,2]
[363132358,1748595053946,-160.0,0.00022191,2]
[363132359,1748595053956,-420.0,0.00022191,2]
[363132360,1748595053966,-1085.91,0.00022191,2]
[363132361,1748595053976,-1312.81,0.00022191,2]
[363132362,1748595053986,-427.44,0.00022191,2]
[363132363,1748595053996,-763.73,0.00022191,2]
[363132364,1748595054007,-420.0,0.00022191,2]
[363132365,1748595054017,-1558.76,0.00022191,2]
[363132366,1748595054027,-384.88494013,0.00022191,2]
[363132367,1748595054038,-8866.72,0.00022191,2]
[363132368,1748595054047,-151.000001,0.00022191,7]
[363132369,1748595054058,-420.0,0.00022191,2]
[363132370,1748595054067,-420.0,0.00022191,2]
[363132371,1748595054077,-1012.44,0.00022191,2]
[363132372,1748595054087,-160.0,0.00022191,2]
[363132373,1748595054097,-300.0,0.00022191,2]
[363132374,1748595054108,-1724.6,0.00022191,2]
[363132375,1748595054118,-420.0,0.00022191,2]
[363132376,1748595054128,-488.47,0.00022191,2]
[363132377,1748595054138,-1986.16,0.00022191,2]
[363132378,1748595054148,-420.0,0.00022191,2]
[363132379,1748595054158,-420.0,0.00022191,2]
[363132380,1748595054167,-420.0,0.00022191,2]
[363132381,1748595054178,-1716.48,0.00022191,2]
[363132382,1748595054188,-1634.86,0.00022191,2]
[363132383,1748595054197,-924.63,0.00022191,2]
[363132384,1748595054207,-420.0,0.00022191,2]
[363132385,1748595054217,-744.65,0.00022191,2]
[363132386,1748595054226,-1108.49,0.00022191,2]
[363132387,1748595054236,-926.63,0.00022191,2]
[363132388,1748595054246,-7359.95,0.00022191,2]
[363132389,1748595054256,-158.87,0.00022191,2]
[363132390,1748595054266,-634.1,0.00022191,2]
[363132391,1748595054276,-420.0,0.00022191,2]
[363132392,1748595054286,-420.0,0.00022191,2]
[363132393,1748595054296,-582.01,0.00022191,2]
[363132394,1748595054306,-894.5,0.00022191,2]
[363132395,1748595054316,-947.39,0.00022191,2]
[363132396,1748595054326,-420.0,0.00022191,2]
[363132397,1748595054336,-714.91,0.00022191,2]
[363132398,1748595054345,-1391.71,0.00022191,2]
[363132399,1748595054356,-420.0,0.00022191,2]
[363132400,1748595054367,-10506.62,0.00022191,2]
[363132401,1748595054377,-689.07,0.00022191,2]
[363132402,1748595054387,-1447.76,0.00022191,2]
[363132403,1748595054397,-1830.22,0.00022191,2]
[363132404,1748595054624,-160.0,0.00022191,2]
[363132405,1748595054634,-2064.25,0.00022191,2]
[363132406,1748595054645,-1390.96,0.00022191,2]
[363132407,1748595054656,-420.0,0.00022191,2]
[363132408,1748595054666,-420.0,0.00022191,2]
[363132409,1748595054676,-1032.87,0.00022191,2]
[363132410,1748595054686,-420.0,0.00022191,2]
[363132411,1748595054695,-429.14,0.00022191,2]
[363132412,1748595054705,-4246.82,0.00022191,2]
[363132413,1748595054714,-986.88,0.00022191,2]
[363132414,1748595054724,-1241.51,0.00022191,2]
[363132415,1748595054734,-420.0,0.00022191,2]
[363132416,1748595054743,-900.66,0.00022191,2]
[363132417,1748595054753,-1411.58,0.00022191,2]
[363132418,1748595054763,-420.0,0.00022191,2]
[363132419,1748595054773,-1703.92,0.00022191,2]
[363132420,1748595054782,-451.86,0.00022191,2]
[363132421,1748595054792,-1492.1,0.00022191,2]
[363132422,1748595054802,-420.0,0.00022191,2]
[363132423,1748595054811,-1782.43,0.00022191,2]
[363132424,1748595054822,-420.0,0.00022191,2]
[363132425,1748595054831,-891.35,0.00022191,2]
[363132426,1748595054841,-160.0,0.00022191,2]
[363132427,1748595054852,-459.25,0.00022191,2]
[363132428,1748595054861,-713.78,0.00022191,2]
[363132429,1748595054871,-24042.6,0.00022191,2]
[363132430,1748595054881,-2492.49,0.00022191,2]
[363132431,1748595054890,-428.94,0.00022191,2]
[363132432,1748595054900,-420.0,0.00022191,2]
[363132433,1748595054910,-8089.18,0.00022191,2]
[363132434,1748595054919,-584.91,0.00022191,2]
[363132435,1748595054929,-886.85,0.00022191,2]
[363132436,1748595054939,-160.0,0.00022191,2]
[363132437,1748595054948,-160.0,0.00022191,2]
[363132438,1748595054957,-1539.82,0.00022191,2]
[363132439,1748595054967,-13408.83,0.00022191,2]
[363132440,1748595054976,-420.0,0.00022191,2]
[363132441,1748595054986,-420.0,0.00022191,2]
[363132442,1748595054997,-420.0,0.00022191,2]
[363132443,1748595055007,-801.8,0.00022191,2]
[363132444,1748595055017,-420.0,0.00022191,2]
[363132445,1748595055027,-2540.05,0.00022191,2]
[363132446,1748595055037,-1220.76,0.00022191,2]
[363132447,1748595055048,-420.0,0.00022191,2]
[363132448,1748595055058,-887.28,0.00022191,2]
[363132449,1748595055068,-745.23,0.00022191,2]
[363132450,1748595055078,-4419.24,0.00022191,2]
[363132451,1748595055088,-1076.39,0.00022191,2]
[363132452,1748595055097,-489.66,0.00022191,2]
[363132453,1748595055108,-511.89,0.00022191,2]
[363132454,1748595055118,-538.09,0.00022191,2]
[363132455,1748595055128,-503.36760929,0.00022191,2]
[363132456,1748595055137,-420.0,0.00022191,2]
[363132457,1748595055145,-420.0,0.00022191,2]
[363132458,1748595055154,-420.0,0.00022191,2]
[363132459,1748595055162,-723.44,0.00022191,2]
[363132460,1748595055172,-420.0,0.00022191,2]
[363132461,1748595055183,-4088.87,0.00022191,2]
[363132462,1748595055193,-420.0,0.00022191,2]
[363132463,1748595055203,-768.19,0.00022191,2]
[363132464,1748595055213,-656.15,0.00022191,2]
[363132465,1748595055222,-420.0,0.00022191,2]
[363132466,1748595055232,-726.02,0.00022191,2]
[363132467,1748595055243,-420.0,0.00022191,2]
[363132468,1748595055253,-1195.02,0.00022191,2]
[363132469,1748595055263,-448.92,0.00022191,2]
[363132470,1748595055273,-961.19,0.00022191,2]
[363132471,1748595055283,-420.0,0.00022191,2]
[363132472,1748595055293,-4464.4,0.00022191,2]
[363132473,1748595055303,-420.0,0.00022191,2]
[363132474,1748595055313,-548.3567604,0.00022191,2]
[363132475,1748595055323,-3020.32,0.00022191,2]
[363132476,1748595055334,-420.0,0.00022191,2]
[363132477,1748595055345,-1470.13,0.00022191,2]
[363132478,1748595055356,-1010.18,0.00022191,2]
[363132479,1748595055366,-614.66,0.00022191,2]
[363132480,1748595055376,-793.16,0.00022191,2]
[363132481,1748595055386,-420.0,0.00022191,2]
[363132482,1748595055397,-420.0,0.00022191,2]
[363132483,1748595055407,-1052.93,0.00022191,2]
[363132484,1748595055416,-420.0,0.00022191,2]
[363132485,1748595055427,-420.0,0.00022191,2]
[363132486,1748595055439,-1877.11,0.00022191,2]
[363132487,1748595055449,-718.74,0.00022191,2]
[363132488,1748595055459,-206.80561198,0.00022191,2]
[363132489,1748595055470,-1481.21,0.00022191,2]
[363132490,1748595055480,-160.0,0.00022191,2]
[363132491,1748595055491,-449.4,0.00022191,2]
[363132492,1748595055511,-775.23,0.00022191,2]
[363132493,1748595055521,-151.0,0.00022191,7]
[363132494,1748595055531,-420.0,0.00022191,2]
[363132495,1748595055542,-160.0,0.00022191,2]
[363132496,1748595055552,-151.0,0.00022191,7]
[363132497,1748595055562,-420.0,0.00022191,2]
[363132498,1748595055572,-517.72,0.00022191,2]
[363132499,1748595055583,-420.0,0.00022191,2]
[363132500,1748595055594,-420.0,0.00022191,2]
[363132501,1748595055606,-7296.93,0.00022191,2]
[363132502,1748595055617,-3040.94,0.00022191,2]
[363132503,1748595055626,-151.0,0.00022191,7]
[363132504,1748595055636,-151.0,0.00022191,7]
[363132505,1748595055646,-1030.06,0.00022191,2]
[363132506,1748595055657,-1273.3,0.00022191,2]
[363132507,1748595055675,-163.37657939,0.00022191,2]
[363132508,1748595055690,-21483.75,0.00022191,2]
[363132509,1748595055701,-445.41,0.00022191,2]
[363132510,1748595055711,-1271.11,0.00022191,2]
[363132511,1748595055722,-151.0,0.00022191,7]
[363132512,1748595055733,-151.0,0.00022191,7]
[363132513,1748595055743,-438.53,0.00022191,2]
[363132514,1748595055754,-1183.41,0.00022191,2]
[363132515,1748595055764,-420.0,0.00022191,2]
[363132516,1748595055775,-1285.36,0.00022191,2]
[363132517,1748595055785,-160.0,0.00022191,2]
[363132518,1748595055795,-1795.53,0.00022191,2]
[363132519,1748595055806,-4044.59,0.00022191,2]
[363132520,1748595055817,-420.0,0.00022191,2]
[363132521,1748595055828,-644.91,0.00022191,2]
[363132522,1748595055838,-1474.1,0.00022191,2]
[363132523,1748595055849,-2802.17,0.00022191,2]
[363132524,1748595055861,-889.57,0.00022191,2]
[363132525,1748595055871,-420.0,0.00022191,2]
[363132526,1748595055882,-1159.0,0.00022191,2]
[363132527,1748595055893,-420.0,0.00022191,2]
[363132528,1748595055905,-3115.06,0.00022191,2]
[363132529,1748595055917,-1089.14,0.00022191,2]
[363132530,1748595055928,-420.0,0.00022191,2]
[363132531,1748595055938,-420.0,0.00022191,2]
[363132532,1748595055949,-590.77,0.00022191,2]
[363132533,1748595055960,-776.89,0.00022191,2]
[363132534,1748595055970,-420.0,0.00022191,2]
[363132535,1748595055982,-1078.66,0.00022191,2]
[363132536,1748595055992,-420.0,0.00022191,2]
[363132537,1748595056002,-420.0,0.00022191,2]
[363132538,1748595056013,-1441.62,0.00022191,2]
[363132539,1748595056024,-773.67,0.00022191,2]
[363132540,1748595056034,-818.48,0.00022191,2]
[363132541,1748595056045,-3348.76,0.00022191,2]
[363132542,1748595056055,-420.0,0.00022191,2]